[Event "POL-chT 2nd League Juniors 2020"]
[Site "Sypniewo"]
[Date "2020.10.28"]
[Round "7.8"]
[White "Oleksy, Krzysztof"]
[Black "Kubica, Dominik"]
[Result "1/2-1/2"]
[ECO "B10"]
[WhiteElo "1934"]
[BlackElo "1577"]
[Annotator "NA"]
[PlyCount "121"]
[EventDate "2020.10.23"]
[EventType "team-tourn"]
[EventCountry "POL"]
[SourceTitle "playchess.com"]
[Source "ChessBase"]
[SourceQuality "1"]
[TimeControl "5400+30"]

1. e4 {[%emt 0:00:00]} c6 {[%emt 0:00:00]} 2. Ne2 {[%emt 0:00:51]} d5 {[%emt 0:00:45]} 3. e5 {[%emt 0:00:30]} Bg4 {[%emt 0:06:14]} 4. h3 {[%emt 0:09:59]} Bxe2 {[%emt 0:06:54]} 5. Qxe2 {[%emt 0:08:48]} e6 {[%emt 0:01:21]} 6. g3 {[%emt 0:04:32]} c5 {[%emt 0:05:02]} 7. Bg2 {[%emt 0:02:24]} Nc6 {[%emt 0:01:24]} 8. c3 {[%emt 0:00:28]} Qg5 {[%emt 0:06:27]} 9. O-O {[%emt 0:02:59]} Qxe5 {[%emt 0:01:26]} 10. Qxe5 {[%emt 0:09:21]} Nxe5 {[%emt 0:00:23]} 11. Bxd5 {[%emt 0:01:13]} O-O-O {[%emt 0:17:35]} 12. Bg2 {[%emt 0:14:10]} Nd3 {[%emt 0:04:32]} 13. Be4 {[%emt 0:15:30]} Nf6 {[%emt 0:05:17]} 14. Bxd3 {[%emt 0:00:37]} Rxd3 {[%emt 0:00:07]} 15. Na3 {[%emt 0:04:15]} Bd6 {[%emt 0:15:52]} 16. Re1 {[%emt 0:05:04]} Bc7 {[%emt 0:04:49]} 17. b3 {[%emt 0:01:06]} h5 {[%emt 0:02:50]} 18. Nc4 {[%emt 0:07:29]} h4 {[%emt 0:05:14]} 19. Nb2 {[%emt 0:00:41]} Rdd8 {[%emt 0:01:55]} 20. g4 {[%emt 0:01:49]} Nd5 {[%emt 0:01:53]} 21. d4 {[%emt 0:05:51]} cxd4 {[%emt 0:00:34]} 22. cxd4 {[%emt 0:00:09]} Nb4 {[%emt 0:02:17]} 23. Re2 {[%emt 0:00:41]} Rxd4 {[%emt 0:02:31]} 24. Be3 {[%emt 0:00:03]} Rd7 {[%emt 0:00:45]} 25. a4 {[%emt 0:02:20]} Nd5 {[%emt 0:02:57]} 26. Bxa7 {[%emt 0:00:54]} b6 {[%emt 0:00:33]} 27. a5 {[%emt 0:00:22]} Kb7 {[%emt 0:00:40]} ({Black should play} 27... bxa5 $17 28. Be3 Nxe3 29. Rxe3 Rhd8) 28. Bxb6 {[%emt 0:00:24]} Bxb6 {[%emt 0:00:33]} 29. axb6 {[%emt 0:00:05]} Nxb6 {[%emt 0:00:24]} 30. Na4 {[%emt 0:01:38]} Nxa4 {[%emt 0:02:25]} 31. Rxa4 {[%emt 0:00:15]} Ra8 {[%emt 0:00:55]} 32. Rb4+ {[%emt 0:00:35]} Kc8 {[%emt 0:00:21]} 33. Rc2+ {[%emt 0:00:15]} Rc7 {[%emt 0:00:47]} 34. Rxc7+ {[%emt 0:00:47]} Kxc7 {[%emt 0:00:04]} 35. g5 {[%emt 0:00:32]} Ra5 {[%emt 0:00:17]} 36. Rxh4 {[%emt 0:00:30]} Rxg5+ {[%emt 0:00:23]} 37. Rg4 {[%emt 0:00:31]} Rb5 {[%emt 0:01:16]} 38. Rxg7 {[%emt 0:00:18]} Rxb3 {[%emt 0:00:25]} 39. Rxf7+ {[%emt 0:00:06]} Kd6 {[%emt 0:00:16]} 40. Kg2 {[%emt 0:00:00]} e5 {[%emt 0:00:33]} 41. h4 {[%emt 0:00:13]} Ke6 {[%emt 0:00:38]} 42. Rf3 {[%emt 0:00:47]} Rb7 {[%emt 0:00:48]} 43. Kh3 {[%emt 0:00:46]} e4 {[%emt 0:00:32]} 44. Rf8 {[%emt 0:00:42]} Re7 {[%emt 0:00:30]} 45. Kg4 {[%emt 0:00:32]} ({White should play} 45. h5 $16) 45... Ke5 {[%emt 0:00:34]} 46. Kg5 {[%emt 0:00:45]} Rg7+ {[%emt 0:00:22]} 47. Kh6 {[%emt 0:00:20]} Rg2 {[%emt 0:00:14]} 48. h5 {[%emt 0:00:18]} Ke6 {[%emt 0:00:41]} 49. Kh7 {[%emt 0:00:25]} Rg4 {[%emt 0:00:18]} 50. h6 {[%emt 0:01:16]} Ke7 {[%emt 0:00:26]} 51. Rg8 {[%emt 0:00:46]} Rf4 {[%emt 0:00:46]} 52. Rg2 {[%emt 0:00:21]} Kf7 {[%emt 0:00:40]} 53. Rg7+ {[%emt 0:00:07]} Kf8 {[%emt 0:00:27]} 54. Rg8+ {[%emt 0:00:53]} Kf7 {[%emt 0:00:12]} 55. Rg2 {[%emt 0:00:18]} Rf3 {[%emt 0:00:39]} 56. Rg4 {[%emt 0:00:48]} Rxf2 {[%emt 0:00:14]} 57. Rxe4 {[%emt 0:00:09]} Rf1 {[%emt 0:00:34]} 58. Rg4 {[%emt 0:00:27]} Rf2 $11 {[%emt 0:00:47]} 59. Rg7+ {[%emt 0:00:09]} Kf8 {[%emt 0:00:16]} 60. Rg8+ {[%emt 0:01:06]} Kf7 {[%emt 0:00:12]} 61. Ra8 {[%emt 0:00:38]} 1/2-1/2

[Event "POL-chT 2nd League Juniors 2020"]
[Site "Sypniewo"]
[Date "2020.10.28"]
[Round "7.8"]
[White "Cieply, Krzysztof"]
[Black "Duda, Szymon"]
[Result "*"]
[ECO "B32"]
[WhiteElo "1573"]
[BlackElo "1529"]
[Annotator "NA"]
[PlyCount "26"]
[EventDate "2020.10.23"]
[EventType "team-tourn"]
[EventCountry "POL"]
[SourceTitle "playchess.com"]
[Source "ChessBase"]
[SourceQuality "1"]
[TimeControl "5400+30"]

1. e4 {[%emt 0:00:00]} c5 {[%emt 0:00:00]} 2. Nf3 {[%emt 0:00:00]} Nc6 {[%emt 0:00:00]} 3. d4 {[%emt 0:00:00]} cxd4 {[%emt 0:00:06]} 4. Nxd4 {[%emt 0:00:00]} Nf6 {[%emt 0:00:12]} 5. Nc3 {[%emt 0:00:00]} e5 {[%emt 0:00:19]} 6. Ndb5 {[%emt 0:00:00]} d6 {[%emt 0:00:18]} 7. Bg5 {[%emt 0:00:00]} a6 {[%emt 0:00:15]} 8. Na3 {[%emt 0:00:00]} b5 {[%emt 0:00:14]} 9. Nd5 {[%emt 0:00:05]} Be7 {[%emt 0:00:20]} 10. Bxf6 {[%emt 0:00:16]} Bxf6 {[%emt 0:00:10]} 11. c4 {[%emt 0:00:19]} b4 {[%emt 0:01:55]} 12. Nc2 {[%emt 0:00:22]} a5 {[%emt 0:01:57]} 13. Qf3 {[%emt 0:03:27]} O-O {[%emt 0:03:22]} *

[Event "POL-chT 2nd League Juniors 2020"]
[Site "Sypniewo"]
[Date "2020.10.28"]
[Round "7.8"]
[White "Wrona, Florian"]
[Black "Bialik, Nikodem"]
[Result "0-1"]
[ECO "B33"]
[WhiteElo "1463"]
[BlackElo "1547"]
[Annotator "NA"]
[PlyCount "102"]
[EventDate "2020.10.23"]
[EventType "team-tourn"]
[EventCountry "POL"]
[SourceTitle "playchess.com"]
[Source "ChessBase"]
[SourceQuality "1"]
[TimeControl "5400+30"]

1. e4 {[%emt 0:00:00]} c5 {[%emt 0:00:00]} 2. Nf3 {[%emt 0:00:00]} Nc6 {[%emt 0:00:00]} 3. d4 {[%emt 0:00:00]} cxd4 {[%emt 0:00:06]} 4. Nxd4 {[%emt 0:00:00]} Nf6 {[%emt 0:00:12]} 5. Nc3 {[%emt 0:00:00]} e5 {[%emt 0:00:19]} 6. Ndb5 {[%emt 0:00:00]} d6 {[%emt 0:00:18]} 7. Bg5 {[%emt 0:00:00]} a6 {[%emt 0:00:15]} 8. Na3 {[%emt 0:00:00]} b5 {[%emt 0:00:14]} 9. Nd5 {[%emt 0:00:05]} Be7 {[%emt 0:00:20]} 10. Bxf6 {[%emt 0:00:16]} Bxf6 {[%emt 0:00:10]} 11. c4 {[%emt 0:00:19]} b4 {[%emt 0:01:55]} 12. Nc2 {[%emt 0:00:22]} a5 {[%emt 0:01:57]} 13. Qf3 {[%emt 0:03:27]} O-O {[%emt 0:03:22]} 14. Nxf6+ {[%emt 0:10:09]} Qxf6 {[%emt 0:00:08]} 15. Qxf6 {[%emt 0:00:06]} gxf6 {[%emt 0:00:07]} 16. O-O-O {[%emt 0:00:04]} Rd8 {[%emt 0:02:22]} 17. c5 {[%emt 0:01:39]} Be6 {[%emt 0:02:27]} 18. Bb5 {[%emt 0:13:27]} Na7 {[%emt 0:00:32]} 19. Ba4 {[%emt 0:01:01]} dxc5 {[%emt 0:00:10]} 20. b3 {[%emt 0:01:02]} Kf8 {[%emt 0:02:15]} 21. f3 {[%emt 0:04:44]} Ke7 {[%emt 0:01:53]} 22. g4 {[%emt 0:03:54]} Rac8 {[%emt 0:12:16]} 23. Rxd8 {[%emt 0:15:43]} Rxd8 {[%emt 0:00:57]} 24. Rd1 {[%emt 0:00:14]} Rxd1+ {[%emt 0:01:28]} 25. Kxd1 {[%emt 0:00:01]} Kd6 {[%emt 0:00:29]} 26. Ne3 {[%emt 0:04:24]} Nc8 {[%emt 0:05:09]} 27. Bb5 {[%emt 0:15:49]} Na7 {[%emt 0:04:16]} 28. Bc4 {[%emt 0:05:23]} Nc6 {[%emt 0:01:10]} 29. Ke1 {[%emt 0:04:27]} Kc7 {[%emt 0:07:27]} 30. h4 {[%emt 0:08:08]} Nd4 {[%emt 0:02:17]} 31. Kf2 {[%emt 0:00:31]} h6 {[%emt 0:00:45]} 32. Nd5+ {[%emt 0:04:05]} Bxd5 {[%emt 0:02:54]} 33. Bxd5 {[%emt 0:00:03]} Nb5 {[%emt 0:02:17]} 34. Bxf7 {[%emt 0:00:43]} Nc3 {[%emt 0:00:09]} 35. Ke3 {[%emt 0:01:47]} Kd6 {[%emt 0:02:42]} 36. f4 {[%emt 0:00:31]} Nd1+ {[%emt 0:02:11]} 37. Ke2 {[%emt 0:00:33]} Nc3+ {[%emt 0:00:49]} 38. Ke3 {[%emt 0:00:05]} Nxa2 {[%emt 0:00:57]} 39. h5 {[%emt 0:04:38]} Nc3 {[%emt 0:03:24]} 40. g5 {[%emt 0:01:29]} exf4+ {[%emt 0:02:35]} 41. Kxf4 {[%emt 0:00:16]} fxg5+ {[%emt 0:01:09]} 42. Kf5 {[%emt 0:00:10]} g4 {[%emt 0:03:51]} 43. e5+ {[%emt 0:01:07]} Ke7 {[%emt 0:00:21]} 44. Bc4 {[%emt 0:00:23]} g3 {[%emt 0:00:08]} 45. Bf1 {[%emt 0:00:03]} c4 {[%emt 0:00:28]} 46. Kg6 {[%emt 0:01:07]} cxb3 {[%emt 0:00:17]} 47. Kxh6 {[%emt 0:00:27]} b2 {[%emt 0:00:06]} 48. Bd3 {[%emt 0:00:08]} g2 {[%emt 0:00:08]} 49. e6 {[%emt 0:00:13]} g1=Q {[%emt 0:00:18]} 50. Kh7 {[%emt 0:00:07]} Kf6 {[%emt 0:00:42]} 51. h6 {[%emt 0:00:15]} b1=Q {[%emt 0:00:12]} 0-1

[Event "POL-chT 2nd League Juniors 2020"]
[Site "Sypniewo"]
[Date "2020.10.28"]
[Round "7.9"]
[White "Zaborski, Igor"]
[Black "Jendrowiak, Maciej"]
[Result "1-0"]
[ECO "A46"]
[WhiteElo "1612"]
[BlackElo "1382"]
[Annotator "NA"]
[PlyCount "127"]
[EventDate "2020.10.23"]
[EventType "team-tourn"]
[EventCountry "POL"]
[SourceTitle "playchess.com"]
[Source "ChessBase"]
[SourceQuality "1"]
[TimeControl "5400+30"]

1. d4 {[%emt 0:00:00]} Nf6 {[%emt 0:00:00]} 2. Nf3 {[%emt 0:00:00]} c6 {[%emt 0:00:00]} 3. e3 {[%emt 0:00:24]} d5 {[%emt 0:00:00]} 4. Bd3 {[%emt 0:00:56]} g6 {[%emt 0:00:00]} 5. Nbd2 {[%emt 0:00:42]} Bg7 {[%emt 0:00:18]} 6. b3 {[%emt 0:00:23]} O-O {[%emt 0:00:58]} 7. O-O {[%emt 0:00:30]} Bf5 {[%emt 0:00:46]} 8. Nh4 {[%emt 0:07:43]} Bxd3 {[%emt 0:03:08]} 9. cxd3 {[%emt 0:00:16]} Nbd7 {[%emt 0:01:47]} 10. Ba3 {[%emt 0:03:23]} Re8 {[%emt 0:00:45]} 11. f4 {[%emt 0:01:24]} e6 {[%emt 0:01:57]} 12. Nhf3 {[%emt 0:17:00]} Qa5 {[%emt 0:20:24]} 13. Bd6 {[%emt 0:02:47]} c5 {[%emt 0:01:18]} 14. b4 {[%emt 0:13:21]} cxb4 {[%emt 0:02:36]} 15. Qb3 {[%emt 0:00:47]} Qb6 {[%emt 0:05:17]} 16. Bxb4 {[%emt 0:00:49]} Ng4 {[%emt 0:01:00]} 17. Rfe1 {[%emt 0:00:52]} Rec8 {[%emt 0:06:08]} 18. h3 {[%emt 0:01:15]} Nh6 {[%emt 0:00:33]} 19. Ne5 {[%emt 0:01:23]} Nxe5 {[%emt 0:01:12]} 20. fxe5 {[%emt 0:01:10]} Nf5 {[%emt 0:01:38]} 21. Nf3 {[%emt 0:05:13]} Bh6 {[%emt 0:01:17]} 22. Kf2 {[%emt 0:01:19]} Qc6 {[%emt 0:02:46]} 23. Bd2 {[%emt 0:10:59]} Qc2 {[%emt 0:22:12]} 24. Rac1 {[%emt 0:05:56]} Qxb3 {[%emt 0:00:20]} 25. axb3 {[%emt 0:00:09]} Bf8 {[%emt 0:00:28]} 26. e4 {[%emt 0:03:06]} Ng7 {[%emt 0:01:11]} 27. b4 {[%emt 0:02:52]} b6 {[%emt 0:03:11]} 28. Nh2 {[%emt 0:02:42]} h5 {[%emt 0:00:57]} 29. Nf1 {[%emt 0:00:42]} dxe4 {[%emt 0:03:56]} 30. dxe4 {[%emt 0:00:32]} Rd8 {[%emt 0:00:19]} 31. Ke3 {[%emt 0:00:31]} Rac8 {[%emt 0:00:38]} 32. Ng3 {[%emt 0:01:50]} Be7 {[%emt 0:00:26]} 33. Ne2 {[%emt 0:01:52]} h4 {[%emt 0:04:10]} 34. Kf3 {[%emt 0:03:22]} Nh5 {[%emt 0:00:31]} 35. b5 {[%emt 0:00:36]} f5 {[%emt 0:04:59]} 36. Rc6 {[%emt 0:04:06]} Kf7 {[%emt 0:03:16]} 37. Rec1 {[%emt 0:00:39]} Rxc6 {[%emt 0:01:47]} 38. bxc6 {[%emt 0:00:20]} fxe4+ {[%emt 0:00:12]} 39. Kxe4 {[%emt 0:00:14]} Ke8 {[%emt 0:02:02]} 40. c7 {[%emt 0:03:48]} Rc8 {[%emt 0:00:14]} 41. d5 {[%emt 0:00:08]} exd5+ {[%emt 0:00:48]} 42. Kxd5 {[%emt 0:00:09]} Ng7 {[%emt 0:01:49]} 43. Nf4 {[%emt 0:00:55]} g5 {[%emt 0:00:23]} 44. Ne6 {[%emt 0:00:30]} Nxe6 {[%emt 0:01:03]} 45. Kxe6 {[%emt 0:00:07]} Bc5 {[%emt 0:00:30]} 46. Rxc5 {[%emt 0:01:34]} bxc5 {[%emt 0:00:11]} 47. Kd6 {[%emt 0:00:05]} c4 {[%emt 0:00:28]} 48. e6 {[%emt 0:00:59]} g4 {[%emt 0:00:23]} 49. hxg4 {[%emt 0:00:19]} Rxc7 {[%emt 0:00:16]} 50. Kxc7 {[%emt 0:00:07]} Ke7 {[%emt 0:00:04]} 51. Kc6 {[%emt 0:00:54]} Kxe6 {[%emt 0:00:37]} 52. g5 {[%emt 0:00:14]} Kf5 {[%emt 0:01:11]} 53. Kb5 {[%emt 0:00:28]} c3 {[%emt 0:00:17]} 54. Bc1 {[%emt 0:00:07]} a5 {[%emt 0:00:38]} 55. Kxa5 {[%emt 0:00:09]} Kg6 {[%emt 0:00:10]} 56. Kb4 {[%emt 0:00:07]} Kf5 {[%emt 0:00:09]} 57. Kxc3 {[%emt 0:00:10]} Kg6 {[%emt 0:00:07]} 58. Kd4 {[%emt 0:00:09]} Kf5 {[%emt 0:00:10]} 59. Kd5 {[%emt 0:00:17]} Kg6 {[%emt 0:00:12]} 60. Ke6 {[%emt 0:00:11]} Kg7 {[%emt 0:00:16]} 61. Kf5 {[%emt 0:00:24]} Kh7 {[%emt 0:00:16]} 62. Kf6 {[%emt 0:00:29]} Kg8 {[%emt 0:00:19]} 63. Kg6 {[%emt 0:00:24]} Kh8 {[%emt 0:00:09]} 64. Kf7 {[%emt 0:00:18]} 1-0

[Event "POL-chT 2nd League Juniors 2020"]
[Site "Sypniewo"]
[Date "2020.10.28"]
[Round "7.9"]
[White "Cieply, Krzysztof"]
[Black "Duda, Szymon"]
[Result "1-0"]
[ECO "C55"]
[WhiteElo "1573"]
[BlackElo "1529"]
[Annotator "NA"]
[PlyCount "119"]
[EventDate "2020.10.23"]
[EventType "team-tourn"]
[EventCountry "POL"]
[SourceTitle "playchess.com"]
[Source "ChessBase"]
[SourceQuality "1"]
[TimeControl "5400+30"]

1. e4 {[%emt 0:00:00]} e5 {[%emt 0:00:15]} 2. Nf3 {[%emt 0:00:00]} Nc6 {[%emt 0:00:20]} 3. d4 {[%emt 0:00:00]} exd4 {[%emt 0:00:07]} 4. Bc4 {[%emt 0:00:09]} Nf6 {[%emt 0:00:26]} 5. e5 {[%emt 0:00:24]} d5 {[%emt 0:00:50]} 6. Bb5 {[%emt 0:00:15]} Ne4 {[%emt 0:02:19]} 7. Nxd4 {[%emt 0:00:14]} Bd7 {[%emt 0:00:59]} 8. Bxc6 {[%emt 0:00:14]} bxc6 {[%emt 0:01:03]} 9. O-O {[%emt 0:00:31]} Bc5 {[%emt 0:05:30]} 10. f3 {[%emt 0:00:15]} Ng5 {[%emt 0:01:16]} 11. f4 {[%emt 0:00:09]} Ne4 {[%emt 0:07:02]} 12. Be3 {[%emt 0:01:15]} Qh4 {[%emt 0:01:56]} 13. Nd2 {[%emt 0:01:30]} Nxd2 {[%emt 0:27:29]} 14. Qxd2 {[%emt 0:00:10]} O-O {[%emt 0:00:29]} 15. Nb3 {[%emt 0:00:52]} Bb6 {[%emt 0:00:53]} 16. Bc5 {[%emt 0:01:00]} Rfe8 {[%emt 0:01:01]} 17. a4 {[%emt 0:01:22]} Rad8 {[%emt 0:12:16]} 18. a5 {[%emt 0:00:22]} Bxc5+ {[%emt 0:00:11]} 19. Nxc5 {[%emt 0:00:04]} f6 {[%emt 0:00:43]} 20. exf6 {[%emt 0:11:49]} Qxf6 {[%emt 0:00:24]} 21. c3 {[%emt 0:00:12]} Bf5 {[%emt 0:07:42]} 22. Rae1 {[%emt 0:02:11]} Qg6 {[%emt 0:01:11]} 23. Re5 {[%emt 0:12:38]} Kf8 {[%emt 0:24:57]} 24. Qd4 {[%emt 0:01:24]} Qf6 {[%emt 0:02:07]} 25. Rfe1 {[%emt 0:01:06]} h6 {[%emt 0:00:32]} 26. Nb7 {[%emt 0:03:25]} Ra8 {[%emt 0:00:30]} 27. Rxe8+ {[%emt 0:01:51]} Rxe8 {[%emt 0:00:04]} 28. Rxe8+ {[%emt 0:00:09]} Kxe8 {[%emt 0:00:01]} 29. Qxa7 {[%emt 0:00:14]} Qe7 {[%emt 0:00:57]} 30. Qf2 {[%emt 0:00:34]} Qe4 {[%emt 0:00:53]} 31. h3 {[%emt 0:00:30]} Qa4 {[%emt 0:00:35]} 32. Qe2+ {[%emt 0:00:14]} Kf8 {[%emt 0:00:31]} 33. a6 {[%emt 0:00:40]} Bc8 {[%emt 0:00:27]} 34. Nc5 {[%emt 0:00:19]} Qa5 {[%emt 0:00:25]} 35. b4 {[%emt 0:04:54]} Qb6 {[%emt 0:00:24]} 36. Kh2 {[%emt 0:00:30]} Kf7 {[%emt 0:00:43]} 37. Qe5 {[%emt 0:00:37]} Kf8 {[%emt 0:00:28]} 38. f5 {[%emt 0:01:35]} Kf7 {[%emt 0:00:33]} 39. Kg3 {[%emt 0:01:49]} Qa7 {[%emt 0:00:22]} 40. Kh2 {[%emt 0:01:18]} Qb6 {[%emt 0:00:26]} 41. g4 {[%emt 0:02:48]} Bd7 {[%emt 0:00:42]} 42. Qe1 {[%emt 0:00:58]} Bc8 {[%emt 0:00:10]} 43. Qe2 {[%emt 0:01:05]} Kf8 {[%emt 0:00:48]} 44. Kg3 {[%emt 0:00:11]} Kf7 {[%emt 0:00:10]} 45. Kh4 {[%emt 0:00:04]} Qb8 {[%emt 0:00:37]} 46. Kh5 {[%emt 0:00:39]} Qa8 {[%emt 0:00:35]} 47. h4 {[%emt 0:01:11]} Qb8 {[%emt 0:00:14]} 48. Qe5 {[%emt 0:00:45]} Qa8 {[%emt 0:00:56]} 49. Qxc7+ {[%emt 0:00:11]} Kg8 {[%emt 0:00:11]} 50. Qd8+ {[%emt 0:01:07]} Kh7 {[%emt 0:00:20]} 51. Qf8 {[%emt 0:02:03]} Qb8 {[%emt 0:00:58]} 52. Qf7 {[%emt 0:02:36]} Qa8 {[%emt 0:00:30]} 53. a7 {[%emt 0:00:37]} Bb7 {[%emt 0:00:29]} 54. Ne6 {[%emt 0:00:30]} Qh8 {[%emt 0:00:32]} 55. Nf8+ {[%emt 0:00:16]} Qxf8 {[%emt 0:00:03]} 56. Qxf8 {[%emt 0:00:07]} d4 {[%emt 0:00:08]} 57. cxd4 {[%emt 0:00:31]} c5 {[%emt 0:00:08]} 58. a8=R {[%emt 0:00:27]} Bxa8 {[%emt 0:00:28]} 59. Qxa8 {[%emt 0:00:04]} cxd4 {[%emt 0:00:08]} 60. Qb7 {[%emt 0:00:37]} 1-0

[Event "POL-chT 2nd League Juniors 2020"]
[Site "Sypniewo"]
[Date "2020.10.28"]
[Round "7.9"]
[White "Lapczynski, Jacek"]
[Black "Wojs, Alicja"]
[Result "*"]
[WhiteElo "1212"]
[BlackElo "1392"]
[Annotator "NA"]
[PlyCount "21"]
[EventDate "2020.10.23"]
[EventType "team-tourn"]
[EventCountry "POL"]
[SourceTitle "playchess.com"]
[Source "ChessBase"]
[SourceQuality "1"]
[TimeControl "5400+30"]

1. e4 {[%emt 0:00:00]} e5 {[%emt 0:00:15]} 2. Nf3 {[%emt 0:00:00]} Nc6 {[%emt 0:00:20]} 3. d4 {[%emt 0:00:00]} exd4 {[%emt 0:00:07]} 4. Bc4 {[%emt 0:00:09]} Nf6 {[%emt 0:00:26]} 5. e5 {[%emt 0:00:24]} d5 {[%emt 0:00:50]} 6. Bb5 {[%emt 0:00:15]} Ne4 {[%emt 0:02:19]} 7. Nxd4 {[%emt 0:00:14]} Bd7 {[%emt 0:00:59]} 8. Bxc6 {[%emt 0:00:14]} bxc6 {[%emt 0:01:03]} 9. O-O {[%emt 0:00:31]} Bc5 {[%emt 0:05:30]} 10. f3 {[%emt 0:00:15]} Ng5 {[%emt 0:01:16]} 11. f4 {[%emt 0:00:09]} *

[Event "POL-chT 2nd League Juniors 2020"]
[Site "Sypniewo"]
[Date "2020.10.28"]
[Round "7.10"]
[White "Rzepka, Marcin"]
[Black "Rozek, Michal"]
[Result "0-1"]
[ECO "A03"]
[WhiteElo "1294"]
[BlackElo "1442"]
[Annotator "NA"]
[PlyCount "80"]
[EventDate "2020.10.23"]
[EventType "team-tourn"]
[EventCountry "POL"]
[SourceTitle "playchess.com"]
[Source "ChessBase"]
[SourceQuality "1"]
[TimeControl "5400+30"]

1. d3 {[%emt 0:00:00]} d5 {[%emt 0:00:18]} 2. f4 {[%emt 0:00:00]} Nf6 {[%emt 0:00:52]} 3. Nf3 {[%emt 0:00:00]} g6 {[%emt 0:01:02]} 4. g3 {[%emt 0:00:42]} Bg7 {[%emt 0:00:22]} 5. Bg2 {[%emt 0:00:55]} c5 {[%emt 0:00:52]} 6. O-O {[%emt 0:00:46]} O-O {[%emt 0:00:49]} 7. Nc3 {[%emt 0:01:19]} Nc6 {[%emt 0:01:25]} 8. e4 {[%emt 0:01:50]} d4 {[%emt 0:03:58]} 9. Ne2 {[%emt 0:00:05]} b6 {[%emt 0:02:37]} 10. h3 {[%emt 0:03:06]} e6 {[%emt 0:06:31]} 11. g4 {[%emt 0:07:48]} Qc7 {[%emt 0:03:16]} 12. Ng3 {[%emt 0:05:22]} Bb7 {[%emt 0:06:38]} 13. g5 {[%emt 0:04:16]} Nd7 {[%emt 0:02:14]} 14. h4 {[%emt 0:05:23]} h5 {[%emt 0:10:42]} 15. e5 {[%emt 0:25:31]} Ne7 {[%emt 0:15:38]} 16. Ne4 {[%emt 0:08:27]} Nf5 {[%emt 0:02:03]} 17. Nf6+ {[%emt 0:04:58]} Kh8 {[%emt 0:02:10]} 18. Bd2 {[%emt 0:04:29]} Rfd8 {[%emt 0:03:26]} 19. Qe1 {[%emt 0:05:06]} Rac8 {[%emt 0:06:38]} 20. b3 {[%emt 0:01:22]} Bf8 {[%emt 0:07:37]} 21. Bh3 {[%emt 0:04:05]} Nxf6 {[%emt 0:02:35]} 22. gxf6 {[%emt 0:00:23]} Bh6 {[%emt 0:02:47]} 23. Ng5 {[%emt 0:03:32]} Bxg5 {[%emt 0:01:29]} 24. hxg5 {[%emt 0:01:55]} Qc6 {[%emt 0:01:08]} 25. Kh2 {[%emt 0:00:11]} b5 {[%emt 0:05:28]} 26. Rg1 {[%emt 0:00:55]} c4 {[%emt 0:01:18]} 27. Bg2 {[%emt 0:00:16]} Qd7 {[%emt 0:00:15]} 28. Be4 {[%emt 0:01:43]} cxd3 {[%emt 0:01:56]} 29. Bxd3 {[%emt 0:03:43]} Qd5 {[%emt 0:00:52]} 30. Rc1 {[%emt 0:03:26]} a6 {[%emt 0:02:05]} 31. Ba5 {[%emt 0:01:55]} Rd7 {[%emt 0:00:37]} 32. Bd2 {[%emt 0:00:05]} Qf3 {[%emt 0:01:22]} 33. Be2 {[%emt 0:01:19]} Qd5 {[%emt 0:00:41]} 34. Bd3 {[%emt 0:00:09]} Kh7 {[%emt 0:03:03]} 35. Bb4 {[%emt 0:00:24]} Ne3 {[%emt 0:00:46]} 36. Be2 {[%emt 0:01:22]} Rdc7 {[%emt 0:00:41]} 37. Qh4 {[%emt 0:01:05]} Rxc2 {[%emt 0:00:25]} 38. Rce1 {[%emt 0:00:16]} Ng2 {[%emt 0:00:34]} 39. Qg3 {[%emt 0:00:37]} Nxe1 {[%emt 0:00:06]} 40. Rxe1 {[%emt 0:00:30]} Rxe2+ {[%emt 0:00:30]} 0-1

[Event "POL-chT 2nd League Juniors 2020"]
[Site "Sypniewo"]
[Date "2020.10.28"]
[Round "7.10"]
[White "Lapczynski, Jacek"]
[Black "Wojs, Alicja"]
[Result "0-1"]
[ECO "D08"]
[WhiteElo "1212"]
[BlackElo "1392"]
[Annotator "NA"]
[PlyCount "114"]
[EventDate "2020.10.23"]
[EventType "team-tourn"]
[EventCountry "POL"]
[SourceTitle "playchess.com"]
[Source "ChessBase"]
[SourceQuality "1"]
[TimeControl "5400+30"]

1. d4 {[%emt 0:00:35]} d5 {[%emt 0:00:01]} 2. c4 {[%emt 0:02:36]} e5 {[%emt 0:00:34]} 3. dxe5 {[%emt 0:02:12]} d4 {[%emt 0:01:16]} 4. e4 {[%emt 0:02:46]} Nc6 {[%emt 0:03:31]} 5. Nf3 {[%emt 0:05:30]} Bg4 {[%emt 0:01:23]} 6. Nbd2 {[%emt 0:02:15]} Nxe5 {[%emt 0:01:04]} 7. h3 {[%emt 0:01:02]} Bh5 {[%emt 0:01:07]} 8. Qb3 {[%emt 0:02:06]} Nxf3+ {[%emt 0:00:49]} 9. Nxf3 {[%emt 0:01:02]} b6 {[%emt 0:02:20]} 10. Qb5+ {[%emt 0:00:45]} Qd7 {[%emt 0:00:32]} 11. Qxh5 {[%emt 0:00:36]} c5 {[%emt 0:00:54]} 12. Qg5 {[%emt 0:02:01]} Ne7 {[%emt 0:00:52]} 13. Bd3 {[%emt 0:02:13]} Nc6 {[%emt 0:00:29]} 14. Qd2 {[%emt 0:01:34]} Bd6 {[%emt 0:00:21]} 15. Qe2 {[%emt 0:01:53]} O-O {[%emt 0:00:13]} 16. Bd2 {[%emt 0:02:09]} Rfe8 {[%emt 0:01:16]} 17. O-O {[%emt 0:04:57]} f5 {[%emt 0:01:45]} 18. Rfe1 {[%emt 0:03:40]} f4 {[%emt 0:02:01]} 19. Bc2 {[%emt 0:02:06]} Ne5 {[%emt 0:05:14]} 20. Nxe5 {[%emt 0:01:13]} Bxe5 {[%emt 0:00:06]} 21. Rab1 {[%emt 0:03:24]} Re6 {[%emt 0:00:18]} 22. f3 {[%emt 0:00:43]} Rg6 {[%emt 0:00:09]} 23. Kf1 {[%emt 0:02:41]} Rf8 {[%emt 0:00:13]} 24. Bd3 {[%emt 0:01:26]} Rff6 {[%emt 0:00:08]} 25. Rec1 {[%emt 0:00:58]} Rg5 {[%emt 0:00:31]} 26. h4 {[%emt 0:00:47]} Rh5 {[%emt 0:01:04]} 27. Qf2 {[%emt 0:07:02]} Rg6 {[%emt 0:00:52]} 28. Ke2 {[%emt 0:01:37]} Qe6 {[%emt 0:01:25]} 29. Rh1 {[%emt 0:10:32]} Qf6 {[%emt 0:01:33]} 30. b4 {[%emt 0:03:34]} Rgh6 {[%emt 0:00:13]} 31. bxc5 {[%emt 0:01:47]} bxc5 {[%emt 0:00:09]} 32. Rh3 {[%emt 0:10:16]} Rxh4 {[%emt 0:01:34]} 33. Rbh1 {[%emt 0:01:37]} Rxh3 {[%emt 0:00:36]} 34. Rxh3 {[%emt 0:00:14]} Rg6 {[%emt 0:00:33]} 35. Kf1 {[%emt 0:01:44]} Qa6 {[%emt 0:00:34]} 36. Be1 {[%emt 0:02:49]} Qa3 {[%emt 0:01:13]} 37. Qc2 {[%emt 0:00:41]} Rb6 {[%emt 0:00:13]} 38. Bd2 {[%emt 0:03:48]} Rb2 {[%emt 0:00:16]} 39. Bc1 {[%emt 0:00:57]} Rxc2 {[%emt 0:00:29]} 40. Bxa3 {[%emt 0:00:07]} Rc3 {[%emt 0:00:03]} 41. Bxc5 {[%emt 0:01:46]} Rxd3 {[%emt 0:00:13]} 42. Rh5 {[%emt 0:00:52]} Bc7 {[%emt 0:00:27]} 43. Bxa7 {[%emt 0:01:47]} Ra3 {[%emt 0:00:36]} 44. Bxd4 {[%emt 0:00:38]} Rxa2 {[%emt 0:00:09]} 45. Be5 {[%emt 0:01:40]} Bxe5 {[%emt 0:00:08]} 46. Rxe5 {[%emt 0:00:05]} Ra1+ {[%emt 0:00:07]} 47. Kf2 {[%emt 0:00:22]} Ra2+ {[%emt 0:00:08]} 48. Kg1 {[%emt 0:00:10]} Rc2 {[%emt 0:00:07]} 49. Rc5 {[%emt 0:00:06]} Kf7 {[%emt 0:00:08]} 50. Kh2 {[%emt 0:00:22]} Ke6 {[%emt 0:00:10]} 51. Rc7 {[%emt 0:00:11]} g5 {[%emt 0:00:47]} 52. Kh3 {[%emt 0:00:43]} h5 {[%emt 0:00:12]} 53. Rc5 {[%emt 0:00:49]} Kf6 {[%emt 0:00:30]} 54. Rc8 {[%emt 0:00:25]} Rc1 {[%emt 0:00:17]} 55. Kh2 {[%emt 0:00:13]} g4 {[%emt 0:00:33]} 56. c5 {[%emt 0:00:25]} g3+ {[%emt 0:00:08]} 57. Kh3 {[%emt 0:00:08]} Rh1# {[%emt 0:00:06]} 0-1